Workbook

Sheet 13.05
A2: МБОУ "СОШ №33" НМР РТ | D2: Отд./корп | E2: 1 неделя | H2: День | I2: 2024-05-13
A4: Раздел | B4: № рец. | C4: Блюдо | D4: Выход, г | E4: Цена | F4: Ккал | G4: Белки | H4: Жиры | I4: Угл-ды
A5: Завтрак
A6: хлеб | C6: Печенье | D6: 40 | F6: 124.28 | G6: 2.96 | H6: 3.76 | I6: 10.84
A7: 2 блюдо | B7: 175 | C7: Каша Дружба" молочная с маслом сливочным | D7: 180/5 | F7: 141.12 | G7: 6.44 | H7: 9.16 | I7: 15.23
A8: гор.напиток | B8: 376 | C8: Чай с сахаром | D8: 200 | F8: 32.00 | G8: 0.07 | H8: 0.02 | I8: 8.00
A9: хлеб | C9: Батон нарезной | D9: 75 | F9: 195.52 | G9: 5.60 | H9: 2.16 | I9: 35.36
D10: 500 | F10: =SUM(F6:F9) -> 492.92 | G10: =SUM(G6:G9) -> 15.07 | H10: 15.10 | I10: 69.43
A11: Обед
A13: 1 блюдо | B13: 88 | C13: Щи из свежей капусты с картофелем, со сметаной | D13: 200/5 | F13: 153.90 | G13: 7.54 | H13: 11.91 | I13: 6.50
A14: 2 блюдо | B14: 757 | C14: Котлеты Домашние с гречкой | D14: 90 | F14: 248.00 | G14: 8.01 | H14: 11.14 | I14: 35.71
A15: гарнир | B15: 203 | C15: Макароны отварные с маслом сливочным | D15: 150/3 | F15: 176.10 | G15: 5.68 | H15: 2.88 | I15: 31.96
A16: напиток | B16: 349 | C16: Напиток из сухофруктов | D16: 200 | F16: 92.90 | G16: 0.70 | H16: 0.10 | I16: 22.03
A17: хлеб | C17: Хлеб пшеничный/ржаной | D17: 25/30 | F17: 118.15 | G17: 3.88 | H17: 0.56 | I17: 24.18
D18: 703 | E18: 80.66 | F18: =SUM(F12:F17) -> 789.05 | G18: =SUM(G12:G17) -> 25.81 | H18: =SUM(H12:H17) -> 26.59 | I18: =SUM(I12:I17) -> 120.38
C19: бесп питание младшие + допол. питание | D19: =D10+D18 -> 1203 | E19: 119.71 | F19: =SUM(F10+F18) -> 1281.97 | G19: =SUM(G10+G18) -> 40.88 | H19: =SUM(H10+H18) -> 41.69 | I19: =SUM(I10+I18) -> 189.81
A21: Горячий завтрак (младшие)
B22: 209 | C22: Яйцо вареное | D22: 40 | F22: 63.00 | G22: 5.08 | H22: 4.60 | I22: 0.28
A23: 2 блюдо | B23: 757 | C23: Котлеты Домашние с гречкой | D23: 90 | F23: 248.00 | G23: 8.01 | H23: 11.14 | I23: 35.71
A24: гарнир | B24: 203 | C24: Макароны отварные с маслом сливочным | D24: 150/3 | F24: 176.10 | G24: 5.68 | H24: 2.88 | I24: 31.96
A25: гор.напиток | B25: 376 | C25: Чай с сахаром | D25: 200 | F25: 32.00 | G25: 0.07 | H25: 0.02 | I25: 8.00
A26: хлеб | C26: Хлеб ржаной | D26: 20 | F26: 39.60 | G26: 1.32 | H26: 0.24 | I26: 7.92
C28: бесплатное питание младшие | D28: 503 | E28: 80.66 | F28: =SUM(F22:F27) -> 558.70 | G28: =SUM(G22:G27) -> 20.16 | H28: 18.88 | I28: 83.87
A30: Раздел | B30: № рец. | C30: Блюдо | D30: Выход, г | E30: Цена | F30: Ккал | G30: Белки | H30: Жиры | I30: Угл-ды
A31: Старшие
A32: 2 блюдо | B32: 757 | C32: Котлеты Домашние с гречкой | D32: 100 | F32: 275.55 | G32: 8.90 | H32: 12.37 | I32: 37.67
A33: гарнир | B33: 203 | C33: Макароны отварные с маслом сливочным | D33: 180/3 | F33: 241.94 | G33: 9.64 | H33: 7.60 | I33: 33.35
A34: холод.закуска | B34: 523 | C34: Свекла отварная дольками (доп.гарнир) | D34: 30 | F34: 27.84 | G34: 0.42 | H34: 1.80 | I34: 2.48
A35: гор.напиток | B35: 376 | C35: Чай с сахаром | D35: 200 | F35: 32.00 | G35: 0.07 | H35: 0.02 | I35: 8.00
A36: хлеб | C36: Хлеб ржаной/пшеничный | D36: 20/20 | F36: 86.60 | G36: 2.84 | H36: 0.40 | I36: 30.06
C38: питание старшие | D38: 553 | E38: 82.20 | F38: =SUM(F32:F36) -> 663.93 | G38: =SUM(G32:G36) -> 21.87 | H38: 22.19 | I38: 111.56

Sheet 14.05
A2: МБОУ "СОШ №33" НМР РТ | D2: Отд./корп | E2: 1 неделя | H2: День | I2: 2024-05-14
A4: Раздел | B4: № рец. | C4: Блюдо | D4: Выход, г | E4: Цена | F4: Ккал | G4: Белки | H4: Жиры | I4: Угл-ды
A5: Завтрак
A6: хлеб | B6: 3 | C6: Булочка сдобная | D6: 50 | F6: 209.00 | G6: 7.05 | H6: 9.30 | I6: 16.80
A7: 2 блюдо | B7: 173 | C7: Каша гречневая молочная вязкая | D7: 200 | F7: 206.46 | G7: 5.92 | H7: 5.59 | I7: 35.42
A8: гор.напиток | B8: 379 | C8: Кофейный напиток с молоком | D8: 200 | F8: 60.10 | G8: 3.17 | H8: 2.68 | I8: 9.98
A9: хлеб | C9: Батон нарезной | D9: 50 | F9: 131.00 | G9: 3.75 | H9: 1.45 | I9: 25.70
D10: 500 | F10: =SUM(F6:F9) -> 606.56 | G10: =SUM(G6:G9) -> 19.89 | H10: 19.02 | I10: 87.90
A11: Обед
A13: 1 блюдо | B13: 96 | C13: Рассольник Ленинградский со сметаной | D13: 200/5 | F13: 93.90 | G13: 5.94 | H13: 6.82 | I13: 12.56
A14: 2 блюдо | B14: 130 | C14: Биточки куриные Солнышко | D14: 90 | F14: 183.45 | G14: 6.01 | H14: 11.53 | I14: 12.88
A15: гарнир | B15: 303 | C15: Каша пшеничная вязкая с маслом сливочным | D15: 150/3 | F15: 227.00 | G15: 6.70 | H15: 4.38 | I15: 35.99
A16: напиток | B16: 555 | C16: Напиток из изюма и яблок | D16: 200 | F16: 68.12 | G16: 0.20 | H16: 0.10 | I16: 19.82
A17: хлеб | C17: Хлеб пшеничный/ржаной | D17: 25/30 | F17: 118.15 | G17: 3.88 | H17: 0.56 | I17: 24.18
D18: 703 | E18: 80.66 | F18: =SUM(F12:F17) -> 690.62 | G18: =SUM(G12:G17) -> 22.73 | H18: =SUM(H12:H17) -> 23.39 | I18: =SUM(I12:I17) -> 105.43
C19: бесп питание младшие + допол. питание | D19: =D10+D18 -> 1203 | E19: 119.71 | F19: =SUM(F10+F18) -> 1297.18 | G19: =SUM(G10+G18) -> 42.62 | H19: =SUM(H10+H18) -> 42.41 | I19: =SUM(I10+I18) -> 193.33
A21: Горячий завтрак (младшие)
A23: 2 блюдо | B23: 130 | C23: Биточки куриные Солнышко | D23: 90 | F23: 183.45 | G23: 6.01 | H23: 11.53 | I23: 12.88
A24: гарнир | B24: 303 | C24: Каша пшеничная вязкая с маслом сливочным | D24: 150/3 | F24: 227.00 | G24: 6.70 | H24: 4.38 | I24: 35.99
A25: гор.напиток | B25: 379 | C25: Кофейный напиток с молоком | D25: 200 | F25: 60.10 | G25: 3.17 | H25: 2.68 | I25: 9.98
A26: хлеб | C26: Хлеб ржаной/пшеничный | D26: 30/30 | F26: 129.90 | G26: 4.26 | H26: 0.60 | I26: 26.64
C28: бесплатное питание младшие | D28: 503 | E28: 80.66 | F28: =SUM(F22:F27) -> 600.45 | G28: =SUM(G22:G27) -> 20.14 | H28: 19.19 | I28: 85.49
A30: Раздел | B30: № рец. | C30: Блюдо | D30: Выход, г | E30: Цена | F30: Ккал | G30: Белки | H30: Жиры | I30: Угл-ды
A31: Старшие
A32: 2 блюдо | B32: 130 | C32: Биточки куриные Солнышко | D32: 100 | F32: 203.80 | G32: 6.67 | H32: 12.81 | I32: 14.30
A33: гарнир | B33: 303 | C33: Каша пшеничная вязкая с маслом сливочным | D33: 180/3 | F33: 247.00 | G33: 7.70 | H33: 7.27 | I33: 36.59
A34: гор.напиток | B34: 379 | C34: Кофейный напиток с молоком | D34: 200 | F34: 60.10 | G34: 3.17 | H34: 2.68 | I34: 9.98
A35: хлеб | C35: Хлеб ржаной/пшеничный | D35: 30/40 | F35: 149.70 | G35: 4.92 | H35: 0.72 | I35: 30.60
C38: питание старшие | D38: 553 | E38: 82.20 | F38: =SUM(F32:F36) -> 660.60 | G38: =SUM(G32:G36) -> 22.46 | H38: 23.48 | I38: 91.47

Sheet 15.05
A2: МБОУ "СОШ №33" НМР РТ | D2: Отд./корп | E2: 1 неделя | H2: День | I2: 2024-05-15
A4: Раздел | B4: № рец. | C4: Блюдо | D4: Выход, г | E4: Цена | F4: Ккал | G4: Белки | H4: Жиры | I4: Угл-ды
A5: Завтрак
A6: Фрукты | C6: Фрукты яблоки | D6: 100 | F6: 47.00 | G6: 0.40 | H6: 0.40 | I6: 9.80
A7: 2 блюдо | B7: 173 | C7: Каша пшенная молочная | D7: 150 | F7: 236.00 | G7: 10.60 | H7: 13.52 | I7: 23.68
A8: гор.напиток | B8: 377 | C8: Чай с сахаром и лимоном | D8: 200 | F8: 34.02 | G8: 0.13 | H8: 0.02 | I8: 8.20
A9: хлеб | C9: Батон нарезной | D9: 50 | F9: 131.00 | G9: 3.75 | H9: 1.45 | I9: 25.70
D10: 500 | F10: =SUM(F6:F9) -> 448.02 | G10: =SUM(G6:G9) -> 14.88 | H10: =SUM(H6:H9) -> 15.39 | I10: =SUM(I6:I9) -> 67.38
A11: Обед
A12: 1 блюдо | B12: 102 | C12: Суп лапша домашняя с картофелем | D12: 200 | F12: 92.40 | G12: 4.35 | H12: 4.83 | I12: 29.30
A13: 2 блюдо | B13: 291 | C13: Плов из куриной грудки (50/150) | D13: 200 | F13: 390.50 | G13: 15.42 | H13: 17.96 | I13: 38.93
C14: Икра кабачковая (доп.гарнир) | D14: 40 | F14: 53.52 | G14: 1.09 | H14: 2.87 | I14: 5.82
A15: напиток | B15: 349 | C15: Кисель | D15: 200 | F15: 123.60 | G15: 0.60 | H15: 0.10 | I15: 20.20
A16: хлеб | C16: Хлеб пшеничный/ржаной | D16: 30/30 | F16: 129.90 | G16: 4.26 | H16: 0.60 | I16: 26.64
D17: 700 | E17: 80.66 | F17: =SUM(F12:F16) -> 789.92 | G17: =SUM(G12:G16) -> 25.72 | H17: =SUM(H12:H16) -> 26.36 | I17: =SUM(I12:I16) -> 120.89
C18: бесп питание младшие + допол. питание | D18: =SUM(D10+D17) -> 1200 | E18: 119.71 | F18: 1237.94 | G18: 40.60 | H18: 41.75 | I18: 188.27
A20: Горячий завтрак (младшие)
A21: Фрукты | C21: Фрукты (яблоки) | D21: 100 | F21: 47.00 | G21: 0.40 | H21: 0.40 | I21: 9.80
A22: 2 блюдо | B22: 291 | C22: Плов из куриной грудки (50/150) | D22: 200 | F22: 390.50 | G22: 15.42 | H22: 17.96 | I22: 38.93
A23: гор.напиток | B23: 377 | C23: Чай с сахаром и лимоном | D23: 200 | F23: 34.02 | G23: 0.13 | H23: 0.02 | I23: 8.20
A24: хлеб | C24: Хлеб пшеничный/ржаной | D24: 20/20 | F24: 86.60 | G24: 2.84 | H24: 0.40 | I24: 30.06
C26: бесплатное питание младшие | D26: 540 | E26: 80.66 | F26: =SUM(F21:F25) -> 558.12 | G26: =SUM(G21:G25) -> 18.79 | H26: 18.78 | I26: 86.99
A28: Раздел | B28: № рец. | C28: Блюдо | D28: Выход, г | E28: Цена | F28: Ккал | G28: Белки | H28: Жиры | I28: Угл-ды
A29: Старшие
A31: Фрукты | C31: Фрукты (яблоки) | D31: 100 | F31: 47.00 | G31: 0.40 | H31: 0.40 | I31: 9.80
A32: 2 блюдо | B32: 291 | C32: Плов из куриной грудки (50/200) | D32: 250 | F32: 521.12 | G32: 19.57 | H32: 22.45 | I32: 60.06
A33: гор.напиток | B33: 377 | C33: Чай с сахаром и лимоном | D33: 200 | F33: 34.02 | G33: 0.13 | H33: 0.02 | I33: 8.20
A34: хлеб | C34: Хлеб пшеничный | D34: 20 | F34: 47.00 | G34: 1.52 | H34: 0.16 | I34: 22.14
C36: питание старшие | D36: 570 | E36: 82.20 | F36: =SUM(F30:F34) -> 649.14 | G36: =SUM(G30:G34) -> 21.62 | H36: =SUM(H30:H34) -> 23.03 | I36: =SUM(I30:I34) -> 100.20

Sheet 16.05
A2: МБОУ "СОШ №33" НМР РТ | D2: Отд./корп | E2: 1 неделя | H2: День | I2: 2024-05-16
A4: Раздел | B4: № рец. | C4: Блюдо | D4: Выход, г | E4: Цена | F4: Ккал | G4: Белки | H4: Жиры | I4: Угл-ды
A5: Завтрак
A6: хлеб | B6: 1 | C6: Бутерброд с маслом сливочным и сыром (30/15/5) | D6: 50 | F6: 155.00 | G6: 6.27 | H6: 7.86 | I6: 14.83
A7: 2 блюдо | B7: 173 | C7: Каша геркулесовая молочная вязкая с маслом сливочным | D7: 180/5 | F7: 206.30 | G7: 4.99 | H7: 7.40 | I7: 28.81
A8: гор.напиток | B8: 382 | C8: Какао с молоком | D8: 200 | F8: 58.60 | G8: 4.08 | H8: 3.54 | I8: 2.61
A9: хлеб | C9: Батон нарезной | D9: 65 | F9: 170.30 | G9: 4.87 | H9: 1.88 | I9: 33.41
D10: 500 | F10: =SUM(F6:F9) -> 590.20 | G10: =SUM(G6:G9) -> 20.21 | H10: =SUM(H6:H9) -> 20.68 | I10: =SUM(I6:I9) -> 79.66
A11: Обед
A12: 1 блюдо | B12: 82 | C12: Борщ из свежей капусты с картофелем | D12: 250 | F12: 133.75 | G12: 2.80 | H12: 6.92 | I12: 16.93
A13: 2 блюдо | B13: 392 | C13: Овощи тушеные с мясом 50/150 | D13: 200 | F13: 363.45 | G13: 12.69 | H13: 13.53 | I13: 44.88
A14: напиток | B14: 388 | C14: Напиток из урюка | D14: 200 | F14: 68.52 | G14: 0.75 | H14: 0.06 | I14: 15.95
A15: хлеб | C15: Хлеб пшеничный/ржаной | D15: 20/30 | F15: 106.40 | G15: 3.50 | H15: 4.02 | I15: 34.02
D18: 700 | E18: 80.66 | F18: =SUM(F12:F17) -> 672.12 | G18: =SUM(G12:G17) -> 19.74 | H18: =SUM(H12:H17) -> 24.53 | I18: =SUM(I12:I17) -> 111.78
C19: бесп питание младшие + допол. питание | D19: =D10+D18 -> 1200 | E19: 119.71 | F19: =SUM(F10+F18) -> 1262.32 | G19: =SUM(G10+G18) -> 39.95 | H19: =SUM(H10+H18) -> 45.21 | I19: =SUM(I10+I18) -> 191.44
A21: Горячий завтрак (младшие)
A23: 2 блюдо | B23: 392 | C23: Овощи тушеные с мясом 50/150 | D23: 200 | F23: 363.45 | G23: 12.69 | H23: 13.53 | I23: 44.88
A24: хол.закуска | B24: 294 | C24: Капуста квашеная (доп.гарнир) | D24: 50 | F24: 42.85 | G24: 0.85 | H24: 2.50 | I24: 4.22
A25: гор.напиток | B25: 388 | C25: Напиток из урюка | D25: 200 | F25: 68.52 | G25: 0.75 | H25: 0.06 | I25: 15.95
A26: хлеб | C26: Хлеб ржаной/пшеничный | D26: 20/30 | F26: 110.10 | G26: 3.60 | H26: 0.52 | I26: 34.02
C28: бесплатное питание младшие | D28: 500 | E28: 80.66 | F28: =SUM(F22:F26) -> 584.92 | G28: =SUM(G22:G26) -> 17.89 | H28: =SUM(H22:H26) -> 16.61 | I28: =SUM(I22:I26) -> 99.07
A30: Раздел | B30: № рец. | C30: Блюдо | D30: Выход, г | E30: Цена | F30: Ккал | G30: Белки | H30: Жиры | I30: Угл-ды
A31: Старшие
A33: хол.закуска | B33: 294 | C33: Салат из квашеной капусты | D33: 100 | F33: 85.70 | G33: 1.70 | H33: 4.80 | I33: 8.46
A34: 2 блюдо | B34: 392 | C34: Овощи тушеные с мясом 50/200 | D34: 250 | F34: 454.31 | G34: 15.86 | H34: 16.91 | I34: 56.10
A35: напиток | B35: 388 | C35: Напиток из урюка | D35: 200 | F35: 68.52 | G35: 0.75 | H35: 0.06 | I35: 15.95
A36: хлеб | C36: Хлеб ржаной | D36: 20 | F36: 39.60 | G36: 1.32 | H36: 0.24 | I36: 7.92
C37: питание старшие | D37: 570 | E37: 82.20 | F37: =SUM(F32:F36) -> 648.13 | G37: =SUM(G32:G36) -> 19.63 | H37: 22.01 | I37: 88.43

Sheet 17.05
A2: МБОУ "СОШ №33" НМР РТ | D2: Отд./корп | E2: 1 неделя | H2: День | I2: 2024-05-17
A4: Раздел | B4: № рец. | C4: Блюдо | D4: Выход, г | E4: Цена | F4: Ккал | G4: Белки | H4: Жиры | I4: Угл-ды
A5: Завтрак
A6: Фрукты | C6: Фрукты яблоки | D6: 100 | F6: 47.00 | G6: 0.40 | H6: 0.40 | I6: 9.80
A7: 2 блюдо | B7: 761 | C7: Сырники из творога со сгущенным молоком | D7: 120/30 | F7: 398.93 | G7: 15.55 | H7: 18.35 | I7: 36.06
A8: гор.напиток | B8: 376 | C8: Чай с сахаром | D8: 200 | F8: 32.00 | G8: 0.07 | H8: 0.02 | I8: 8.00
A9: хлеб | C9: Батон нарезной | D9: 50 | F9: 131.00 | G9: 3.75 | H9: 1.45 | I9: 25.70
D10: 500 | F10: =SUM(F6:F9) -> 608.93 | G10: =SUM(G6:G9) -> 19.77 | H10: =SUM(H6:H9) -> 20.22 | I10: =SUM(I6:I9) -> 79.56
A11: Обед
A12: 1 блюдо | B12: 102 | C12: Суп картофельный с горохом | D12: 200 | F12: 218.60 | G12: 4.35 | H12: 5.22 | I12: 26.53
A13: 2 блюдо | B13: 290 | C13: Птица тушеная в сметанно-томатном соусе | D13: 50/50 | F13: 166.00 | G13: 11.65 | H13: 11.66 | I13: 3.51
A14: гарнир | B14: 303 | C14: Каша гречневая вязкая | D14: 200 | F14: 145.50 | G14: 4.58 | H14: 5.01 | I14: 20.52
A15: напиток | B15: 342 | C15: Компот из свежих яблок | D15: 200 | F15: 46.60 | G15: 0.16 | H15: 0.16 | I15: 10.91
A16: хлеб | C16: Хлеб пшеничный/ржаной | D16: 20/30 | F16: 106.40 | G16: 3.50 | H16: 0.52 | I16: 34.02
D18: 700 | E18: 80.66 | F18: =SUM(F12:F17) -> 683.10 | G18: =SUM(G12:G17) -> 24.24 | H18: =SUM(H12:H17) -> 22.57 | I18: =SUM(I12:I17) -> 95.49
C19: бесп питание младшие + допол. питание | D19: =D10+D18 -> 1200 | E19: 119.71 | F19: =SUM(F10+F18) -> 1292.03 | G19: =SUM(G10+G18) -> 44.01 | H19: =SUM(H10+H18) -> 42.79 | I19: =SUM(I10+I18) -> 175.05
A21: Горячий завтрак (младшие)
A22: Фрукты | C22: Фрукты яблоки | D22: 100 | F22: 47.00 | G22: 0.40 | H22: 0.40 | I22: 9.80
A23: 2 блюдо | B23: 761 | C23: Сырники из творога со сгущенным молоком | D23: 120/30 | F23: 398.93 | G23: 15.55 | H23: 18.35 | I23: 36.03
A24: гор.напиток | B24: 376 | C24: Чай с сахаром | D24: 200 | F24: 32.00 | G24: 0.07 | H24: 0.02 | I24: 8.00
A25: хлеб | C25: Хлеб пшеничный/ржаной | D25: 20/30 | F25: 106.40 | G25: 3.50 | H25: 0.52 | I25: 34.02
C28: бесплатное питание младшие | D28: 500 | E28: 80.66 | F28: =SUM(F22:F26) -> 584.33 | G28: =SUM(G22:G26) -> 19.52 | H28: =SUM(H22:H26) -> 19.29 | I28: =SUM(I22:I26) -> 87.85
A30: Раздел | B30: № рец. | C30: Блюдо | D30: Выход, г | E30: Цена | F30: Ккал | G30: Белки | H30: Жиры | I30: Угл-ды
A31: Старшие
A32: Фрукты | C32: Фрукты яблоки | D32: 100 | F32: 47.00 | G32: 0.40 | H32: 0.40 | I32: 9.80
A33: 2 блюдо | B33: 223 | C33: Запеканка из творога с повидлом | D33: 200 | F33: 502.80 | G33: 19.63 | H33: 22.18 | I33: 40.50
A34: гор.напиток | B34: 376 | C34: Чай с сахаром | D34: 200 | F34: 32.00 | G34: 0.07 | H34: 0.02 | I34: 8.00
A35: хлеб | C35: Хлеб пшеничный/ржаной | D35: 20/30 | F35: 106.40 | G35: 3.50 | H35: 0.52 | I35: 34.02
C37: питание старшие | D37: 550 | E37: 82.20 | F37: =SUM(F32:F36) -> 688.20 | G37: =SUM(G32:G36) -> 23.60 | H37: =SUM(H32:H36) -> 23.12 | I37: =SUM(I32:I36) -> 92.32

Sheet 18.05
A2: МБОУ "СОШ №33" НМР РТ | D2: Отд./корп | E2: 1 неделя | H2: День | I2: 2024-05-18
A4: Раздел | B4: № рец. | C4: Блюдо | D4: Выход, г | E4: Цена | F4: Ккал | G4: Белки | H4: Жиры | I4: Угл-ды
A5: Старшие
A7: 1 блюдо | B7: 103 | C7: Суп картофельный с вермишелью | D7: 250 | F7: 243.25 | G7: 9.68 | H7: 7.33 | I7: 29.45
B8: 735 | C8: Сосиска в тесте | D8: 100 | F8: 282.00 | G8: 9.50 | H8: 15.30 | I8: 26.50
A9: напиток | B9: 349 | C9: Напиток из сухофруктов | D9: 200 | F9: 92.90 | G9: 0.70 | H9: 0.10 | I9: 22.03
A10: хлеб | C10: Хлеб пшеничный | D10: 20 | F10: 47.00 | G10: 1.52 | H10: 0.16 | I10: 22.14
C12: Итого | D12: 570 | E12: 82.20 | F12: =SUM(F7:F11) -> 665.15 | G12: =SUM(G7:G11) -> 21.40 | H12: 22.89 | I12: 100.12
